Workbook

Sheet Lizenz (hidden)
A1: Lizenzbedingungen akzeptiert am: | B1: 2013-10-15T23:45:49
A2: =NOW() -> 2019-03-06T13:23:44.500

Sheet Start
B1: 0
C2: UMSATZSTEUER spezial | E2: =CHAR(169)&" KOLLTAX Software GmbH" -> © KOLLTAX Software GmbH
E3: Stand 1.1.2019. Alle Angaben ohne Gewähr
E4: Einzelplatzlizenz für:
C5: Bitte auswählen durch Anklicken: | E5: Eingeschränkte Gratis - DEMOVERSION
C12: Begriff: | D12: Begriff: | E12: Begriff:
C13: Verschaffung der Verfügungs- macht (Übertragung des wirtschaft- lichen Eigentums, meist Verkauf) über einen Gegenstand | D13: Be- oder Verarbeitung eines vom Auftraggeber beigestellten Gegenstandes unter Verwendung von Hauptstoffen | E13: Alle Leistungen, die nicht in einer Lieferung bestehen, einschließlich Werkleistungen
C15: Rechtsquellen: | D15: Rechtsquellen: | E15: Rechtsquellen:
C16: § 3 UStG, Rz 342-474f UStR | D16: § 3 Abs 4 UStG, Rz 391-393 UStR | E16: § 3a UStG, Rz 475-642z UStR
C17: Art 3 UStG, Rz 3714-3778 UStR | E17: Art 3a UStG, Rz 3806-3917d UStR
C20: Beispiele: | D20: Beispiele: | E20: Beispiele:
C22: Verkauf von ... | D22: Errichtung eines Bauwerkes | E22: Dienstleistungen (aktives Tun)
C23: körperlichen Gegenständen | D23: Installationen in ein Gebäude | E23: Dulden (z.B. Vermietung, Kredit-
C24: bewegl. Sachen, Grundstücken, Tieren | D24: Kfz-Reparatur, wenn Entgelt für | E24: gewährung, Lizenzverträge)
C25: Gas, Strom, Wärme, Dampf | D25: Teile überwiegt (Rz 1067 UStR) | E25: Unterlassen (z.B. Verzicht,
D26: Binden von Büchern | E26: ein Recht auszuüben)

Sheet Kontenplan
B1: Kontenplan individuell
B3: Erlöskonten
B5: Kntonr | C5: Bezeichnung | D5: Lieferung / so.L | E5: USt % | F5: Skonto | G5: UVA Kz. | H5: ZM
A6: 1 | B6: 4120 | C6: Erlöse 20% (sonstige Leistung) | D6: sonstige L | E6: 20 | F6: 4452 | G6: 22
A7: 2 | B7: 4110 | C7: Erlöse 10% (sonstige Leistung) | D7: sonstige L | E7: 10 | F7: 4451 | G7: 29
A8: 3 | B8: 4150 | C8: Ausfuhrlieferungen Drittland 0% | D8: Lieferung | E8: 0 | F8: 4405 | G8: 11
A9: 4 | B9: 4140 | C9: Lohnveredelung 0% | D9: sonstige L | E9: 0 | G9: 12
A10: 5 | B10: 4140 | C10: Echt steuerfrei § 6 Abs 1 Z 2 bis 6 | D10: sonstige L | E10: 0 | F10: 4440 | G10: 15
A11: 6 | C11: Grundstücksumsätze 0% | D11: Lieferung | E11: 0 | G11: 19
A12: 7 | C12: Kleinunternehmer 0% | D12: neutral | E12: 0 | G12: 16
A13: 8 | B13: 4140 | C13: übrige unecht befreite 0% | D13: neutral | E13: 0 | F13: 4440 | G13: 20
A14: 9 | B14: 4190 | C14: Bauleistungen 0% (Reverse Charge) | D14: neutral | E14: 0 | F14: 4490 | G14: 21
A15: 12 | B15: 4000 | C15: innergem. Lieferung 0% | D15: Lieferung | E15: 0 | F15: 4455 | G15: 17 | H15: ZM
A16: 13 | B16: 4700 | C16: Dreiecksgeschäft (Erwerber) | D16: Lieferung | E16: 0 | F16: 4458 | G16: 77 | H16: ZM
A17: 14 | C17: grenzüberschr. Dienstl. echt steuerbefreit | D17: sonstige L | E17: 0 | G17: 11
A18: 15 | B18: 4100 | C18: grenzüberschr. Dienstl. nicht steuerbar | D18: sonstige L | E18: 0 | F18: 4454 | G18: ---
A19: 16 | B19: 4101 | C19: sonstige Leistung EU (Generalklausel) | D19: sonstige L | E19: 0 | G19: --- | H19: ZM
A20: 17 | B20: 4102 | C20: sonstige Leistung EU (Sonderregelung) | D20: sonstige L | E20: 0 | G20: ---
A21: 18 | B21: 4105 | C21: igL Neufahrzeuge an Private (Art 6/1) | D21: Lieferung | E21: 0 | F21: n.verg. | G21: 18
A22: 19 | B22: 4600 | C22: Umsatz stpfl. in anderem EU-Land | D22: neutral | E22: 0 | F22: 4601 | G22: ---
A23: 20 | B23: 4810 | C23: Küche 10% | D23: sonstige L | E23: 10 | G23: 29
A24: 21 | B24: 4820 | C24: Küche 20% | D24: sonstige L | E24: 20 | G24: 22
A25: 22 | C25: Beherbergung (Gastronomie) | D25: sonstige L | E25: 10 | G25: 29
A26: 23 | B26: 4612 | C26: Anlagenverkauf 20% | D26: Lieferung | E26: 20 | G26: 22
A27: 24 | C27: Anlagenverkauf Ausland 0% | D27: Lieferung | E27: 0
A28: 25 | B28: 4600 | C28: Anlagenverkauf igL | D28: Lieferung | E28: 0 | G28: 17 | H28: ZM
A29: 26 | B29: 4920 | C29: so. betriebl.Erträge 20% | D29: neutral | E29: 20 | G29: 22
A30: 27 | B30: 4910 | C30: so. betriebl.Erträge 10% | D30: neutral | E30: 10 | G30: 29
A31: 28 | B31: 4900 | C31: so. betriebl.Erträge 0% | D31: neutral | E31: 0 | G31: 20
A32: 29 | C32: so. betriebl. Erträge nicht steuerbar | D32: neutral | E32: --- | G32: ---
A33: 30 | B33: 4821 | C33: Provisionen 20% | D33: sonstige L | E33: 20 | G33: 22
A34: 31 | C34: Provisionen 0% | D34: sonstige L | E34: 0 | G34: 20
A35: 32 | B35: 4822 | C35: Miet- und Pacht 20% | D35: sonstige L | E35: 20 | G35: 22
A36: 33 | B36: 4811 | C36: Miet- und Pacht 10% | D36: sonstige L | E36: 10 | G36: 29
A37: 34 | C37: Miet- und Pacht 0% | D37: sonstige L | E37: 0 | G37: 20
B41: Aufwandskonten
A43: 1 | B43: 5100 | C43: ig. Erwerb 0% | F43: 5810 | G43: 71
A44: 2 | B44: 5110 | C44: ig. Erwerb 10% | F44: 5811 | G44: 73
A45: 3 | B45: 5120 | C45: ig. Erwerb 20% | F45: 5812 | G45: 72
A46: 4 | B46: 5755 | C46: sonstige Leistung RC | G46: 57
A47: 5 | B47: 5756 | C47: sonstige Leistung kein RC | G47: ---
A48: 6 | B48: 5760 | C48: sonstige Leistungen Ausland | G48: ---
A49: 7 | G49: ---
A50: 8 | B50: 5770 | C50: Bauleistung (RC) | G50: 48
A51: 9 | B51: 7200 | C51: Instandhaltung
A52: 10 | B52: 7300 | C52: Transporte durch Dritte
A53: 11 | B53: 7340 | C53: Reisespesen
A54: 12 | B54: 7400 | C54: Mietaufwand
A55: 13 | B55: 7450 | C55: Leasing PKW, LKW
A56: 14 | B56: 7540 | C56: Provisionen an Dritte
A57: 15 | B57: 7652 | C57: Messen und Ausstellungen
A58: 16 | B58: diverse | C58: diverse Aufwandskonten
A59: 17
A60: 18

Sheet Lieferungen
C2: Lieferungen
C4: innerhalb Österreichs | D4: in anderen EU-Staat | E4: ins Drittland
C6: an Unternehmer | D6: an Unternehmer | E6: an Unternehmer
C8: Rechnungspflicht bei Umsätzen | D8: Innergemeinschaftliche Lieferung | E8: Drittlandsexport
C9: an Unternehmer oder jur. Personen | D9: (steuerfrei gem. Art 7 UStG) | E9: (steuerfrei gem. § 7 UStG)
D15: Kunde ist Schwellenerwerber
D16: (ohne Verzicht auf Erwerbsschwelle):
D17: Versandhandelsregelung beachten
C22: an Nichtunternehmer | D22: an Nichtunternehmer | E22: an Nichtunternehmer
C24: Rechnungspflicht nur bei | D24: Keine Steuerbefreiung als | E24: Drittlandsexport
C25: Werklieferungen oder | D25: innergemeinschaftliche Lieferung | E25: (steuerfrei gem. § 7 UStG)
C26: Werkleistungen iZm Grundstücken
C27: (§ 11 Abs 1 UStG) | D27: Grundsätzlich steuerbar und
D28: steuerpflichtig im Ursprungsland,
D29: ausgenommen im Versendungsfall
D30: (Art 3 Abs 3 UStG)

Sheet igL
B1: Innergemeinschaftliche Lieferung (Art 7 UStG) | F1: 1
B3: Voraussetzungen für (echte) Steuerbefreiung:
B5: Warenbewegung in einen anderen EU-Staat
B6: Abnehmer ist Unternehmer und erwirbt für sein Unternehmen (oder Abnehmer ist juristische Person)
B7: Erwerbsteuerbarkeit beim Abnehmer (siehe innerg. Erwerb)
B8: Buchmäßiger Nachweis (einschließlich UID des Abnehmers)
B9: Beförderungs- oder Versendungsnachweis
B10: Keine Differenzbesteuerung beim Verkäufer (Art 24 Abs 3 UStG)
B11: Lieferant ist kein Kleinunternehmer
B12: Neufahrzeuge: Abnehmer kann auch Privatperson sein
B14: Formelle Vorschriften (Rechnungsangaben gem Art 11 UStG):
B16: Hinweis auf Steuerfreiheit
B17: UID des Lieferanten
B18: UID des Abnehmers
B19: Bei Neufahrzeugen: statt UID des Abnehmers Angaben über Fahrzeug (Art 1 Abs 8 und 9 UStG)
B21: ="Rechnungshinweise für "&VLOOKUP($F$1,EU,2)&":" -> Rechnungshinweise für Belgien: | F21: DEMOVERSION, Liste nicht vollständig
B23: Innergemeinschaftliche Lieferung: | C23: =VLOOKUP($F$1,EU,7) -> livraison intracommunautaire exonérée TVA
B24: UID-Nummer | C24: =VLOOKUP($F$1,EU,3) -> le numéro d’identification à la taxe sur la valeur ajoutée BTW – identificatienummer
B25: UID abgekürzt | C25: =VLOOKUP($F$1,EU,4) -> No.TVA BTW-Nr.
B26: Aufbau der UID | C26: =VLOOKUP($F$1,EU,5)&" + "&VLOOKUP($F$1,EU,6) -> BE + zehn Ziffern
B29: UVA - Kennzahlen | C29: 000, 017 (Neufahrzeuge an Private: 018)
B30: ZM | C30: ja
B32: EKR Buchungsvorschlag
B33: innergemeinschaftliche Lieferung | C33: =VLOOKUP(12,_ekr4,2) -> 4000 | D33: Kundenskonto | E33: =VLOOKUP(12,_ekr4,6) -> 4455
B34: ig. Lieferung Neufahrzeuge an Private | C34: =VLOOKUP(18,_ekr4,2) -> 4105 | D34: Kundenskonto | E34: =VLOOKUP(18,_ekr4,6) -> n.verg.
B35: ig. Lieferung Anlagenverkauf | C35: =VLOOKUP(25,_ekr4,2) -> 4600

Sheet WL
B1: Werklieferungen | F1: 4
B3: Begriff
B4: Be- oder Verarbeitung eines vom Auftraggeber beigestellten Gegenstandes
B5: unter Verwendung von Hauptstoffen
B7: Werklieferungen im Baugewerbe
B8: z.B. Errichtung eines Gebäudes auf Grundstück des Kunden,
B9: Einbauten (unbeweglich) in Gebäude (z.B. Heizung, Sanitär-, Elektroinstallationen)
B11: Ort der Werklieferung
B12: Ort der Verschaffung der Verfügungsmacht (im Baugewerbe i.d.R. Grundstücksort)
B14: Reverse Charge
B16: * § 19 Abs. 1 zweiter Satz UStG:
B17: Leistender = ausländischer Unternehmer
B18: Leistungsempfänger = Unternehmer, K.Ö.R. oder juristische Person mit UID
B19: steuerpflichtige Leistung in Österreich
B21: * § 19 Abs. 1a UStG (Bauleistungen)
B22: Bauleistung durch
B23: - Subunternehmer oder
B24: - an Unternehmer, der üblicherweise selbst Bauleistungen erbringt
B26: Rechnung an Unternehmer | C26: Rechnung an Privatperson
B27: Kein USt-Ausweis | C27: USt-Ausweis
B28: Hinweis auf Reverse Charge | C28: Registrierungspflicht
B29: UID des Leistungsempfängers
B31: UVA - Kennzahlen | C31: UVA | D31: Buchungsvorschlag
B33: a) Bauleistung steuerbar im Inland
B34: Leistungserbringer (z.B. Subunternehmer) | C34: 000, 021 | D34: =VLOOKUP(9,_ekr4,2) -> 4190
B35: Kundenskonto | C35: 000, 021 | D35: =VLOOKUP(9,_ekr4,6) -> 4490
B36: Leistungsempfänger Bauleistung mit RC | C36: 048, 082 | D36: =VLOOKUP(8,_ekr5,2) -> 5770
B38: b) Bauleistung steuerbar im Ausland
B39: Leistender Unternehmer, Subunternehmer | C39: --- | D39: =VLOOKUP(15,_ekr4,2) -> 4100
B40: Keine ZM für Werklieferungen
B41: (Lieferung, fällt daher nicht unter § 3a Abs. 6 UStG)

Sheet Drittex
B1: Drittlandsexport (§ 7 UStG) | F1: 4
B3: Voraussetzungen für Steuerfreiheit:
B5: Warenbewegung in ein Drittland
B6: Im Abholfall: ausländischer Abnehmer (aus EU oder Drittland)
B7: Ausfuhrnachweis (siehe unten)
B8: Buchmäßiger Nachweis
B10: Touristenexport (zusätzlich):
B12: Abnehmer aus Drittland (kein Wohnsitz in EU)
B13: Ausfuhr innerhalb von drei Monaten
B14: Rechnungsbetrag > 75 Euro
B16: Gegenstand zur Ausrüstung oder Versorgung eines Beförderungsmittels
B18: Steuerfreiheit im Abholfall (Details siehe Rz 1065 bis 1071 UStR):
B19: ausländischer Unternehmer (aus EU oder Drittland)
B20: Beförderungsmittel dient Zwecken des Unternehmens
B22: Ausfuhrnachweise
B24: im Versendungsfall (Rz 1083 UStR): | D24: im Beförderungsfall (Rz 1099 UStR):
B25: Frachtbriefe | D25: Schriftliche Anmeldung mit zollamtl. Ausgangsbestätigung
B26: Postaufgabebescheinigungen | D26: Ausfuhranzeige gem Art 796e VO EG 1875/2006
B27: Konossemente u. dgl. | D27: Ausfuhrbescheinigung mit zollamtl. Ausgangsbestätigung
B28: Ausfuhrbescheinigung eines EU-Spediteurs | D28: (wenn keine Zollanmeldung erforderlich, z.B. bis 1.000,-)
B29: Schriftliche Anmeldung
B30: Ausfuhranzeige gem Art 796e VO EG 1875/2006 | D30: im Touristenexport (Rz 1093 ff UStR):
D31: Ausfuhrbescheinigung mit zollamtl. Ausgangsbestätigung
D32: (U 34 oder inhaltlich entsprechend, auch Rechnung)
B34: UVA - Kennzahlen | C34: 000, 011
B36: EKR Buchungsvorschlag
B37: Erlöse Ausfuhrlieferungen | C37: =VLOOKUP(3,_ekr4,2) -> 4150 | D37: Kundenskonto | E37: =VLOOKUP(3,_ekr4,6) -> 4405
B40: ZM | C40: nein

Sheet igE
B1: Innergemeinschaftlicher Erwerb (Art 1 UStG) | F1: 1
B3: Voraussetzungen für innergemeinschaftlichen Erwerb
B5: Warenbewegung von einem in einen anderen EU-Staat
B6: Lieferant ist Unternehmer (kein Kleinunternehmer)
B7: Keine Differenzbesteuerung beim Verkäufer (Art 24 Abs 2 UStG)
B8: Erwerber ist Unternehmer und erwirbt für sein Unternehmen (oder Erwerber ist juristische Person)
B9: Erwerber ist kein Schwellenerwerber (Erwerbe < 11.000,- / Kalenderjahr):
B10: - ausschließlich unecht befreite Umsätze
B11: - pauschalierter Land- und Forstwirt
B12: - juristische Person für nichtuntern. Bereich
B14: Keine Voraussetzung für igE: Verwendung einer UID
B16: Rechnungsangaben gem Art 11 UStG für Lieferanten
B17: (keine Voraussetzung für Vorsteuerabzug gem Art 12 UStG, vgl. Rz 4057 UStR)
B19: Hinweis auf Steuerfreiheit
B20: UID des Lieferanten
B21: UID des Abnehmers
B23: ="Rechnungshinweise "&VLOOKUP($F$1,EU,2)&":" -> Rechnungshinweise Belgien: | F23: DEMOVERSION, Liste nicht vollständig
B25: Innergemeinschaftliche Lieferung: | C25: =VLOOKUP($F$1,EU,7) -> livraison intracommunautaire exonérée TVA
B26: UID-Nummer | C26: =VLOOKUP($F$1,EU,3) -> le numéro d’identification à la taxe sur la valeur ajoutée BTW – identificatienummer
B27: UID abgekürzt | C27: =VLOOKUP($F$1,EU,4) -> No.TVA BTW-Nr.
B28: Aufbau der UID | C28: =VLOOKUP($F$1,EU,5)&" + "&VLOOKUP($F$1,EU,6) -> BE + zehn Ziffern
B30: ="Erwerbsschwelle "&VLOOKUP($F$1,EU,2)&":" -> Erwerbsschwelle Belgien: | C30: =VLOOKUP(F1,EU,9) -> € 11.200,- | F30: (Stand 1.9.2011, ohne Gewähr)
B32: UVA - Kennzahlen ig. Erwerb | C32: 070 (steuerbar); 071 (steuerfrei)
B33: ig. Erwerb steuerpflichtig | C33: 072 (20%); | D33: 073 (10%); 088 (19%)
B34: Vorsteuer ig. Erwerb | C34: 65
B35: nicht zu versteuernde Erwerbe | C35: 076 (besteuert im Bestimmungsland); 077 (mittl. Unt. bei Dreiecksgeschäft)
B37: EKR Buchungsvorschlag
B38: Wareneinkauf ig. Erwerb 20% | C38: =VLOOKUP(3,_ekr5,2) -> 5120 | D38: Lieferantenskonto igE 20% | E38: =VLOOKUP(3,_ekr5,6) -> 5812
B39: Wareneinkauf ig. Erwerb 10% | C39: =VLOOKUP(2,_ekr5,2) -> 5110 | D39: Lieferantenskonto igE 10% | E39: =VLOOKUP(2,_ekr5,6) -> 5811
B40: Wareneinkauf ig. Erwerb 0% | C40: =VLOOKUP(1,_ekr5,2) -> 5100 | D40: Lieferantenskonto igE 0% | E40: =VLOOKUP(1,_ekr5,6) -> 5810

Sheet Versandhandel
C1: Versandhandelsregelung (Art 3 Abs 3 UStG) | G1: 2 | N1: =VLOOKUP(G1,EU,13) -> 0
C3: Betroffener Kundenkreis:
C5: Privatpersonen / Nichtunternehmer aus anderem EU-Staat und
C6: Schwellenerwerber, d.h.
C7: - ausschließlich unecht befreite Umsätze
C8: - pauschalierter Land- und Forstwirt
C9: - juristische Person für nichtuntern. Bereich
C11: Zusammenrechnung der Umsätze an o.a. Kunden für Ermittlung der Lieferschwelle.
C12: Die Versandhandelsregelung ist für jedes EU-Bestimmungsland getrennt anzuwenden.
C14: Lieferschwelle wurde im Kalender-Vorjahr überschritten:
C16: Alle Umsätze im lfd. Jahr steuerbar im Bestimmungsland der Ware
C17: Registrierungspflicht (Steuernummer) im Bestimmungsland
C18: Kein zusätzlicher ig Erwerb durch Verbringen (Art 3 Abs 1 Z 1 lit a UStG)
C20: Lieferschwelle wurde im Kalender-Vorjahr nicht überschritten:
C22: Umsatz im lfd. Jahr steuerbar am Abgangsort der Ware:
C23: - bis zum Erreichen der Lieferschwelle (ohne Verzicht gem Art 3 Abs 6 UStG)
C24: Keine Registrierungspflicht im Bestimmungsland
C26: Umsatz im lfd. Jahr steuerbar im Bestimmungsland der Ware:
C27: - ab dem Umsatz, mit dem die Lieferschwelle überschritten wird
C28: - ab dem ersten Umsatz bei Verzicht auf die Lieferschwelle (Bindung 2 J.)
C29: Registrierungspflicht (Steuernummer) im Bestimmungsland
C30: Kein zusätzlicher ig Erwerb durch Verbringen (Art 3 Abs 1 Z 1 lit a UStG)
C32: ="Lieferschwelle in "&VLOOKUP($G$1,EU,2) -> Lieferschwelle in Bulgarien | F32: DEMOVERSION, Liste nicht vollständig
C34: =VLOOKUP($G$1,EU,8) -> BGN 68.453,- | D34: (ohne Gewähr, lfd. Änderungen möglich)
C35: ="Normalsteuersatz: "&VLOOKUP($G$1,EU,10)&"%" -> Normalsteuersatz: 20% | D35: =IF(N1=0,"ermäßigter Steuersatz: "&VLOOKUP($G$1,EU,11)&"%","ermäßigte Steuersätze: "&VLOOKUP($G$1,EU,11)&"%; "&VLOOKUP($G$1,EU,12)&"%") -> ermäßigter Steuersatz: 9%
C36: (Stand 1.1.2012) | D36: Details Steuersätze (EU-Homepage)
C38: EKR Buchungsvorschlag (Lieferschwelle überschritten oder Verzicht)
C39: Erlöse stpfl. in anderem EU-Land | D39: =VLOOKUP(19,_ekr4,2) -> 4600 | E39: Kundenskonto | F39: =VLOOKUP(19,_ekr4,6) -> 4601

Sheet Rechnung
B1: Rechnungsinhalt für Zwecke des Vorsteuerabzuges | F1: 3
B3: Rechnungsangaben gem. § 11 Abs. 1 UStG (Bruttobetrag > 150,-)
B5: 1. Name und Anschrift des liefernden oder leistenden Unternehmers;
B6: 2. Name und die Anschrift des Leistungsempfängers
B7: 3. die Menge und die handelsübliche Bezeichnung der Lieferung oder Leistung
B8: 4. den Tag der Lieferung / sonstigen Leistung oder Leistungszeitraum
B9: 5. Entgelt (netto) und Steuersatz (oder Hinweis auf Steuerbefreiung)
B10: 6. Steuerbetrag
B11: 7. Ausstellungsdatum
B12: 8. fortlaufende Nummer
B13: 9. UID des liefernden oder leistenden Unternehmers
B15: Zusätzliche Rechnungsangabe bei Bruttobetrag > 10.000,-
B17: 10. UID des Leistungsempfängers
B19: Erleichterungen:
B21: Kleinbetragsrechnungen gem. § 11 Abs. 6 UStG (brutto bis 150,-)
B23: 1. Ausstellungsdatum
B24: 2. Name und Anschrift des liefernden oder leistenden Unternehmers;
B25: 3. die Menge und die handelsübliche Bezeichnung der Lieferung oder Leistung
B26: 4. den Tag der Lieferung / sonstigen Leistung oder Leistungszeitraum
B27: 5. Bruttoentgelt
B28: 6. Steuersatz.
B30: Fahrausweise im Personenbeförderungsverkehr (§ 11 Abs. 9 UStG)
B32: 1. Ausstellungsdatum
B33: 2. Name und Anschrift des Beförderungsunternehmers,
B34: 3. Bruttoentgelt
B35: 4. Steuersatz.

Sheet Re igL
B1: Mitgliedstaat | C1: Bezeichnung UID in Landessprache | D1: Abkürzung | E1: Länder-Kz | F1: Aufbau weitere Stellen | G1: steuerfreie innergemeinschaftliche Lieferung | H1: Lieferschwelle | I1: Erwerbsschwelle | J1: Normalsteuersatz | K1: ermäßigter Steuersatz | M1: 2 erm
A2: 1 | B2: Belgien | C2: le numéro d’identification à la taxe sur la valeur ajoutée BTW – identificatienummer | D2: No.TVA BTW-Nr. | E2: BE | F2: zehn Ziffern | G2: livraison intracommunautaire exonérée TVA | H2: € 35.000,- | I2: € 11.200,- | J2: 21 | K2: 6 | L2: 12 | M2: =IF(ISBLANK(L2),0,1) -> 1
A3: 2 | B3: Bulgarien | C3: Dank dobaweha stoinost | D3: DDS = ДДС | E3: BG | F3: neun oder zehn Ziffern | H3: BGN 68.453,- | I3: BGN 20.000,- | J3: 20 | K3: 9 | M3: =IF(ISBLANK(L3),0,1) -> 0
A4: 3 | B4: Dänemark | C4: momsregistreringsnummer | D4: SE-Nr. | E4: DK | F4: acht Ziffern | G4: skattefri indenrigs leverance | H4: DKK 280.000,- | I4: DKK 80.000,- | J4: 25 | K4: - | M4: 0
A5: 4 | B5: Deutschland | C5: Umsatzsteuer-Identifikationsnummer | D5: USt-IdNr. | E5: DE | F5: neun Ziffern | G5: steuerfreie innergemeinschaftliche Lieferung | H5: € 100.000,- | I5: € 12.500,- | J5: 19 | K5: 7 | M5: 0
A6: 5 | B6: Estland | C6: Käibemaksukohustuslasena registreerimise number | D6: KMKR-number | E6: EE | F6: neun Ziffern | G6: käibemaksuvaba ühendusesisene kättetoimetamine | H6: EEK 550.000,- | I6: EEK 160.000,- | J6: 20 | K6: 9 | M6: 0
A7: 6 | B7: Finnland | C7: Arvonlisâvero-nummer | D7: ALV-NRO | E7: FI | F7: acht Ziffern | G7: veroton yhteisömyynti | H7: € 35.000,- | I7: € 10.000,- | J7: 23 | K7: 13 | L7: 9 | M7: 1
A8: 7 | B8: Frankreich | C8: le numéro d’identification à la taxe sur la valeur ajoutée | D8: keine | E8: FR | F8: elf Ziffern bzw. erste und/ oder zweite Stelle kann Buchstabe sein | G8: livraison intracommunautaire exonérée TVA | H8: € 100.000,- | I8: € 10.000,- | J8: 19.6 | K8: 5.5 | L8: 2.1 | M8: 1
A9: 8 | B9: Griechenland | C9: Arithmos Forologikou Mitroou FPA | D9: A.φ.M. | E9: EL | F9: neun Ziffern; alte achtstellige USt-IdNrn. Voranstellen der Ziffer Ø | G9: tax free intracommunity delivery | H9: € 35.000,- | I9: € 10.000,- | J9: 23 | K9: 13 | L9: 6.5 | M9: 1
A10: 9 | B10: Großbritannien | C10: value added tax registration number | D10: VAT Reg.No. | E10: GB | F10: neun oder zwölf Ziffern; Verwaltungen und Gesundheitswesen: GD o. HA + fünf | G10: tax free intracommunity delivery | H10: GBP 70.000,- | I10: GBP 55.000,- | J10: 20 | K10: 5 | L10: 0 | M10: 1
A11: 10 | B11: Irland | C11: value added tax identification number | D11: VAT No | E11: IE | F11: acht, die zweite Stelle kann und die letzte muss ein Buchstabe sein | G11: tax free intracommunity despatch | H11: € 35.000,- | I11: € 41.000,- | J11: 23 | K11: 13.5 | L11: 4.8 | M11: 1
A12: 11 | B12: Italien | C12: il numero di registrazione IVA | D12: P.IVA | E12: IT | F12: elf Ziffern | G12: cessioni intracomunitarie esenti | H12: € 35.000,- | I12: € 8.263,- | J12: 21 | K12: 10 | L12: 4 | M12: 1
A13: 12 | B13: Lettland | C13: pievienotāsvērtības nodokļa reģistrācijas numurs | D13: PVN | E13: LV | F13: elf Ziffern | G13: Ar 0 % apliekamas precu piegades ES ietvaros, PVN likuma 28. pants | H13: LVL 24.000,- | I13: LVL 7.000,- | J13: 22 | K13: 12 | M13: 0
A14: 13 | B14: Litauen | C14: Pridetines vertes mokescio moketojo kodas | D14: PVM moketojo kodas | E14: LT | F14: neun oder zwölf Ziffern | G14: pridetines vertes mokesciu neapmokestinamas tiekimas Europos Sajungos viduje | H14: LTL 125.000,- | I14: € 35.000,- | J14: 21 | K14: 9 | L14: 5 | M14: 1
A15: 14 | B15: Luxemburg | C15: le numéro d’identification à la taxe sur la valeur ajoutée | D15: keine | E15: LU | F15: acht Ziffern | G15: livraison intracommunautaire exonérée TVA | H15: € 100.000,- | I15: € 10.000,- | J15: 15 | K15: 12 | L15: 6 | M15: 1
A16: 15 | B16: Malta | C16: numru ta'l-identifikazzjoni tat-taxxa fuq il-valr miujud | E16: MT | F16: acht Ziffern | G16: tax free intracommunity delivery | H16: € 35.000,- | I16: € 10.000,- | J16: 18 | K16: 5 | M16: 0
A17: 16 | B17: Niederlande | C17: BTW-identificatienummer | D17: OB-Nummer | E17: NL | F17: zwölf, die drittletzte Stelle muss der Buchstabe B sein | G17: BTW-Registratiennummer leverancier en afnemer | H17: € 100.000,- | I17: € 10.000,- | J17: 19 | K17: 6 | M17: 0
A18: 17 | B18: Österreich | C18: Umsatzsteuer-Identifikationsnummer | D18: UID-Nr. | E18: AT | F18: U + acht Ziffern | G18: steuerfreie innergemeinschaftliche Lieferung | H18: € 35.000,- (bis 2010: € 100.000,-) | I18: € 11.000,- | J18: 20 | K18: 10 | L18: 12 | M18: 1
A19: 18 | B19: Polen | C19: Numer identyfikacjiny podatkowej | D19: NIP | E19: PL | F19: zehn Ziffern | G19: wewnatrzwspólnotowa dostawa towarów opodatkowana wg. stawki podatku 0 % – Art. 42 | H19: PLN 139.000,- | I19: PLN 50.000,- | J19: 23 | K19: 8 | L19: 5 | M19: 1
A20: 19 | B20: Portugal | C20: o número de identificacao para efeitos do imposto sobre o valor acrescentado | D20: NIPC | E20: PT | F20: neun Ziffern | G20: fornecimento inter-comunitário isento de IVA | H20: € 35.000,- | I20: € 10.000,- | J20: 23 | K20: 13 | L20: 6 | M20: 1
A21: 20 | B21: Rumänien | C21: Cod de inregistrare in scopuri de TVA | E21: RO | F21: zehn Ziffern | H21: RON 149.023,- | I21: RON 33.800,- | J21: 24 | K21: 9 | L21: 5 | M21: 1
A22: 21 | B22: Schweden | C22: Registrieringsnummer för mervädesskatt (Momsnummer) | D22: MomsNr. | E22: SE | F22: zwölf Ziffern, die beiden letzten Stellen Ø1 | G22: skattefri gemenskapsintern leverans | H22: SEK 320.000,- | I22: SEK 90.000,- | J22: 25 | K22: 12 | L22: 6 | M22: 1
A23: 22 | B23: Slowakei | C23: Dan z pridanej hodnoty | D23: IC DPH | E23: SK | F23: zehn Ziffern | G23: od dane oslobodené intrakomuni-tárne dodávky | H23: € 35.000,- | I23: € 12.500,- | J23: 20 | K23: 10 | M23: 0
A24: 23 | B24: Slowenien | C24: identifikacijska številka za DDV | D24: DDV | E24: SI | F24: acht Ziffern | G24: oprošcena dobava znotraj skupnosti | H24: € 35.000,- | I24: € 10.000,- | J24: 20 | K24: 8.5 | M24: 0
A25: 24 | B25: Spanien | C25: el número de identificación a efectos del Impuesto sobre el Valor Anadido | D25: N.IVA | E25: ES | F25: neun, erste und / oder letzte Stelle kann Buchstabe sein | G25: entrega intracomunitaria libre de impuesto | H25: € 35.000,- | I25: € 10.000,- | J25: 18 | K25: 8 | L25: 4 | M25: 1
A26: 25 | B26: Tschechien | C26: danove identifikacni cislo | D26: DIC | E26: CZ | F26: acht, neun oder zehn Ziffern | G26: dodání zboží do jiného clenského státu, osvobozené od DPH | H26: CZK 1,140.000,- | I26: CZK 326.000,- | J26: 20 | K26: 14 | M26: 0
A27: 26 | B27: Ungarn | C27: közösségi adószám | E27: HU | F27: acht Ziffern | G27: forgalmiadó-mentes, Közösségenbelülrol történo áruszállítás | H27: HUF 9,758.700,- | I27: HUF 2,5 Mio | J27: 27 | K27: 18 | L27: 5 | M27: 1
A28: 27 | B28: Zypern (griech. Teil) | C28: Arithmos egrafis FPA | D28: FPA | E28: CY | F28: neun Stellen, die letzte Stelle muss ein Buchstabe sein | G28: tax free intracommunity delivery | H28: € 35.000,- | I28: € 10.251,- | J28: 15 | K28: 8 | L28: 5 | M28: 1
H33: 2011-01-01 | I33: 2011-07-01 | J33: 2012-01-01

Sheet VO igL
B1: Verordnung des Bundesministers für Finanzen über den Nachweis der Beförderung
B2: oder Versendung und den Buchnachweis bei innergemeinschaftlichen Lieferungen
B4: BGBl. Nr. 401/1996 Stand: 1.1.2012 (ohne Gewähr, Hervorhebungen stammen vom Autor)
B6: Auf Grund des Artikels 7 des Umsatzsteuergesetzes 1994, BGBl. Nr. 663/1994, zuletzt geändert durch
B7: das Bundesgesetz BGBl. I Nr. 34/2010, wird verordnet:
B9: Nachweis der Beförderung oder Versendung bei
B10: innergemeinschaftlichen Lieferungen
B12: § 1. Bei innergemeinschaftlichen Lieferungen (Art. 7 UStG 1994) muss der Unternehmer eindeutig und
B13: leicht nachprüfbar nachweisen, dass er oder der Abnehmer den Gegenstand der Lieferung in das übrige
B14: Gemeinschaftsgebiet befördert oder versendet hat.
B16: § 2. In den Fällen, in denen der Unternehmer oder der Abnehmer den Gegenstand der Lieferung in das
B17: übrige Gemeinschaftsgebiet befördert, hat der Unternehmer den Nachweis wie folgt zu führen:
B19: 1. durch die Durchschrift oder Abschrift der Rechnung (§ 11, Art. 11 UStG 1994),
B20: 2. durch einen handelsüblichen Beleg, aus dem sich der Bestimmungsort ergibt, insbesondere Lieferschein, und
B21: 3. durch eine Empfangsbestätigung des Abnehmers oder seines Beauftragten oder in den Fällen der
B22: Beförderung des Gegenstandes durch den Abnehmer durch eine Erklärung des Abnehmers oder
B23: seines Beauftragten, dass er den Gegenstand in das übrige Gemeinschaftsgebiet befördern wird.
B25: § 3. (1) In den Fällen, in denen der Unternehmer oder der Abnehmer den Gegenstand der Lieferung in
B26: das übrige Gemeinschaftsgebiet versendet, hat der Unternehmer den Nachweis wie folgt zu führen:
B28: 1. durch die Durchschrift oder Abschrift der Rechnung (§ 11, Art. 11 UStG 1994) und
B29: 2. durch einen Versendungsbeleg im Sinne des § 7 Abs. 5 UStG 1994, insbesondere durch Frachtbriefe,
B30: Postaufgabebescheinigungen, Konnossemente und dergleichen oder deren Doppelstücke.
B32: (2) Ist es dem Unternehmer nicht möglich oder nicht zumutbar, den Versendungsnachweis nach Absatz 1
B33: zu führen, kann er den Nachweis auch nach § 2 führen.
B35: § 4. (1) Ist der Gegenstand der Lieferung vor der Beförderung oder Versendung in das übrige
B36: Gemeinschaftsgebiet durch einen Beauftragten bearbeitet oder verarbeitet worden (Art. 7 Abs. 1 letzter
B37: Unterabsatz UStG 1994), so hat der Unternehmer die Versendung oder Beförderung nachzuweisen (§ 2).
B38: Zusätzlich dazu hat der Unternehmer auf einem Beleg festzuhalten:
B40: 1. den Namen und die Anschrift des Beauftragten,
B41: 2. die handelsübliche Bezeichnung und die Menge des an den Beauftragten übergebenen oder
B42: versendeten Gegenstandes,
B43: 3. den Ort und den Tag der Entgegennahme des Gegenstandes durch den Beauftragten und
B44: 4. die Bezeichnung des Auftrages und der vom Beauftragten vorgenommenen Bearbeitung oder Verarbeitung.
B46: (2) Ist der Gegenstand der Lieferung durch mehrere Beauftragte bearbeitet oder verarbeitet worden, so
B47: haben sich die in Absatz 1 bezeichneten Angaben auf die Bearbeitungen oder Verarbeitungen eines jeden
B48: Beauftragten zu erstrecken.
B50: Buchnachweis bei innergemeinschaftlichen Lieferungen
B52: § 5. Bei innergemeinschaftlichen Lieferungen muss der Unternehmer die Voraussetzungen der
B53: Steuerbefreiung einschließlich Umsatzsteuer-Identifikationsnummer des Abnehmers buchmäßig
B54: nachweisen. Die Voraussetzungen müssen leicht nachprüfbar aus der Buchführung zu ersehen sein.
B56: § 6. Der Unternehmer hat folgendes aufzuzeichnen:
B57: 1. den Namen, die Anschrift und die Umsatzsteuer-Identifikationsnummer des Abnehmers,
B58: 2. den Namen und die Anschrift des Beauftragten des Abnehmers in Abholfällen,
B59: 3. die handelsübliche Bezeichnung und die Menge des Gegenstandes der Lieferung,
B60: 4. den Tag der Lieferung,
B61: 5. das vereinbarte Entgelt oder bei der Besteuerung nach vereinnahmten Entgelten das vereinnahmte
B62: Entgelt und den Tag der Vereinnahmung,
B63: 6. die Art und den Umfang einer Bearbeitung oder Verarbeitung vor der Beförderung oder Versendung in
B64: das übrige Gemeinschaftsgebiet (Art. 7 Abs. 1 letzter Unterabsatz UStG 1994),
B65: 7. die Beförderung oder Versendung in das übrige Gemeinschaftsgebiet und
B66: 8. den Bestimmungsort im übrigen Gemeinschaftsgebiet.
B68: § 7. In den einer Lieferung gleichgestellten Verbringungsfällen (Art. 3 Abs. 1 UStG 1994) hat der
B69: Unternehmer folgendes aufzuzeichnen:
B70: 1. die handelsübliche Bezeichnung und die Menge des verbrachten Gegenstandes,
B71: 2. die Anschrift und die Umsatzsteuer-Identifikationsnummer des im anderen Mitgliedstaates gelegenen
B72: Unternehmensteils,
B73: 3. den Tag des Verbringens und
B74: 4. die Bemessungsgrundlage nach Art. 4 Abs. 2 UStG 1994.
B76: § 8. In den Fällen, in denen neue Fahrzeuge an Abnehmer ohne Umsatzsteuer-Identifikationsnummer in
B77: das übrige Gemeinschaftsgebiet geliefert werden, hat der Unternehmer folgendes aufzuzeichnen:
B78: 1. den Namen und die Anschrift des Erwerbers,
B79: 2. die handelsübliche Bezeichnung des gelieferten Fahrzeuges,
B80: 3. den Tag der Lieferung,
B81: 4. das vereinbarte Entgelt oder bei der Besteuerung nach vereinnahmten Entgelten das vereinnahmte
B82: Entgelt und den Tag der Vereinnahmung,
B83: 5. die in Art. 1 Abs. 8 und 9 UStG 1994 bezeichneten Merkmale,
B84: 6. die Beförderung oder Versendung in das übrige Gemeinschaftsgebiet und
B85: 7. den Bestimmungsort im übrigen Gemeinschaftsgebiet.
B87: Sperre in der Genehmigungsdatenbank (BGBl II Nr. 172/2010 vom 16.6.2010):
B89: § 9. Als weiterer Nachweis, dass der Gegenstand der Lieferung in das übrige Gemeinschaftsgebiet
B90: befördert oder versendet wird, ist bei der Lieferung von Fahrzeugen im Sinne des § 2 des
B91: Normverbrauchsabgabegesetzes, BGBl. Nr. 695/1991, die Sperre des Fahrzeuges
B92: in der Genehmigungsdatenbank nach § 30a KFG 1967 erforderlich.”

Sheet VO Nfz
B1: Verordnung des Bundesministers für Finanzen betreffend die Meldepflicht der
B2: innergemeinschaftlichen Lieferung neuer Fahrzeuge
B4: BGBl. II Nr. 308/2003 Stand: 1.1.2012 (ohne Gewähr, Hervorhebungen stammen vom Autor)
B6: Auf Grund des Artikels 27 Abs. 2 des Umsatzsteuergesetzes 1994, BGBl. Nr. 663, in der Fassung
B7: des Bundesgesetzes BGBl. I Nr. 10/2003 wird verordnet:
B12: § 1. (1) Unternehmer (§ 2 UStG 1994) haben ihre innergemeinschaftlichen Lieferungen neuer Fahrzeuge
B13: im Sinne des Art. 1 UStG 1994 an Abnehmer ohne Umsatzsteuer-Identifikationsnummer nach
B14: amtlichem Vordruck zu melden.
B16: (2) Fahrzeuglieferer (Art. 2 UStG 1994) haben ihre innergemeinschaftlichen Lieferungen neuer
B17: Fahrzeuge im Sinne des Art. 1 UStG 1994 nach amtlichem Vordruck zu melden.
B19: § 2. Die Meldung hat folgende Angaben zu enthalten:
B21: – Rechnungsdatum,
B22: – Name und Anschrift des Verkäufers; sofern der Verkäufer Unternehmer ist, auch dessen Umsatzsteuer-
B23: Identifikationsnummer,
B24: – Bestimmungsmitgliedstaat (falls dies nicht möglich, den Mitgliedstaat, in dem der Käufer Wohnsitz,
B25: Sitz oder gewöhnlichen Aufenthalt hat),
B26: – Name und Anschrift des Käufers,
B27: – Entgelt für das gelieferte Fahrzeug samt Zubehör,
B28: – Art des Fahrzeuges (Land-, Wasser- oder Luftfahrzeug),
B29: – Beschreibung des Fahrzeuges (Marke und Modell),
B30: – Datum der ersten Inbetriebnahme, sofern diese vor der Rechnungslegung liegt,
B31: – Kilometerstand (Landfahrzeuge), Anzahl der Betriebsstunden (Wasserfahrzeuge, Luftfahrzeuge),
B32: – Fahrgestellnummer oder Kraftfahrzeug-Kennzeichen (Landfahrzeuge) bzw. Zellennummer (Luftfahrzeuge).
B34: § 3. Die Meldung ist
B36: 1. von Unternehmern (§ 2 UStG 1994) bis zum Ablauf des auf jedes Kalendervierteljahr folgenden
B37: Kalendermonates, in dem die innergemeinschaftlichen Lieferungen von Kraftfahrzeugen ausgeführt
B38: wurden,
B39: 2. von Fahrzeuglieferern (Art. 2 UStG 1994) im Zeitpunkt der Geltendmachung des Vorsteuerabzuges
B40: (Art. 12 Abs. 3 UStG 1994), spätestens bis zum Ablauf des dem Kalendermonat folgenden
B41: Monates, in dem die innergemeinschaftliche Lieferung des Kraftfahrzeuges ausgeführt wurde,
B42: abzugeben.
B44: § 4. Die Meldung gemäß § 3 ist bei dem für die Erhebung der Umsatzsteuer zuständigen Finanzamt
B45: einzureichen.
B47: § 5. Die Verordnung ist auf die Meldung von Lieferungen anzuwenden, die in Kalendervierteljahre
B48: fallen, die nach der Kundmachung der Verordnung beginnen.

Sheet AuswahlOrt
B2: Ort der sonstigen Leistung (§ 3a UStG)
B4: Bitte Leistungsempfänger auswählen:
B8: Leistung (ganz oder teilweise) | C8: Privatperson | D8: Beispiele:
B9: für unternehmerischen Bereich
C10: Leistung an Unternehmer | D10: > Gemeinnützer Verein
B11: auch, wenn Leistung für den | C11: für ausschließlich privaten Bereich | D11: > Gemeinde (nur Hoheitsbereich)
B12: nicht steuerbaren Bereich, z.B.: | D12: > Reine Holding
C13: Reine Holding (ohne UID)
B14: Gemischte Holding;
B15: Gemeinde mit unternehmerischem | C15: Nichtunternehmerisch tätige
B16: und Hoheitsbereich | C16: juristische Person ohne UID
B18: Gesetz: | C18: Gesetz: | D18: Gesetz:
B19: § 3a Abs. 5 Z. 1 UStG | C19: § 3a Abs. 5 Z. 3 UStG | D19: § 3a Abs. 5 Z. 2 UStG
B21: UStR: | C21: UStR: | D21: UStR:
B22: Rz 638n bis 638s | C22: Rz 638v | D22: Rz 638p
B24: Gesetzestext:

Sheet Hilfe A
A1: 1 | B1: Unternehmer | C1: Nichtunternehmer | D1: Juristische Person mit UID
A2: 2
A3: 3 | B3: Leistung (ganz oder teilweise) | C3: Privatperson | D3: Beispiele:
A4: 4 | B4: für unternehmerischen Bereich
A5: 5 | C5: Leistung an Unternehmer | D5: > Gemeinnützer Verein
A6: 6 | B6: Leistung für den | C6: für ausschließlich privaten Bereich | D6: > Gemeinde (nur Hoheitsbereich)
A7: 7 | B7: nicht steuerbaren Bereich, z.B.: | D7: > Reine Holding
A8: 8 | C8: Reine Holding (ohne UID)
A9: 9 | B9: Gemischte Holding; | D9: Gesetz:
A10: 10 | B10: Gemeinde mit unternehmerischem | C10: Nichtunternehmerisch tätige | D10: § 3a Abs. 5 Z. 2 UStG
A11: 11 | B11: und Hoheitsbereich | C11: juristische Person ohne UID
A12: 12 | D12: UStR:
A13: 13 | B13: Gesetz: | C13: Gesetz: | D13: Rz 638p
A14: 14 | B14: § 3a Abs. 5 Z. 1 UStG | C14: § 3a Abs. 5 Z. 3 UStG
A15: 15
A16: 16 | B16: UStR: | C16: UStR:
A17: 17 | B17: Rz 638n bis 638s | C17: Rz 638v
A18: 18
A19: 19
A20: 20
A21: 21

Sheet Unternehmer
B2: Ort der sonstigen Leistung (§ 3a, Art 3a UStG) | D2: 2
B4: ... an UNTERNEHMER oder jur. Person mit UID
B6: Bitte auswählen (DEMOVERSION: nur Vermittlungs- oder Grundstücksleistung verfügbar):
C7: =VLOOKUP(1,HilfeU,$D$2+1) -> Vermittlungsleistung | E7: Leistungsort:
C8: =VLOOKUP(2,HilfeU,$D$2+1) -> 0 | E8: =VLOOKUP(D2,LoesungU,3) -> Empfängerstaat
C9: =VLOOKUP(3,HilfeU,$D$2+1) -> Vermittlungsleistungen sind sonstige Leistungen,
C10: =VLOOKUP(4,HilfeU,$D$2+1) -> bei denen der Unternehmer im fremden Namen | E10: ="§ 3a Abs. "&VLOOKUP(D2,LoesungU,4)&" UStG" -> § 3a Abs. 6 UStG
C11: =VLOOKUP(5,HilfeU,$D$2+1) -> und für fremde Rechnung nach außen hin auftritt.
C12: =VLOOKUP(6,HilfeU,$D$2+1) -> Der Vermittler erhält für den Abschluss eines | E12: Hinweise, Besonderheiten, Ausnahmen
C13: =VLOOKUP(7,HilfeU,$D$2+1) -> Geschäftes zwischen seinem Auftraggeber und | E13: =VLOOKUP(D2,LoesungU,5) -> Ausnahme: Grundstücksmakler (= Grundstücksleistung)
C14: =VLOOKUP(8,HilfeU,$D$2+1) -> einem Dritten eine Provision.
C15: =VLOOKUP(9,HilfeU,$D$2+1) -> 0
C16: =VLOOKUP(10,HilfeU,$D$2+1) -> Eine Vermittlungsleistung an einen Unternehmer
C17: =VLOOKUP(11,HilfeU,$D$2+1) -> wird (ausgenommen Grundstücksmakler) | E17: Reverse Charge
C18: =VLOOKUP(12,HilfeU,$D$2+1) -> im Empfängerstaat ausgeführt (Generalklausel). | E18: Leistender = ausländischer Unternehmer,
C19: =VLOOKUP(13,HilfeU,$D$2+1) -> Ab 2010 gibt es keine Sonderregelung mehr | E19: =E8&" = Österreich:" -> Empfängerstaat = Österreich:
C20: =VLOOKUP(14,HilfeU,$D$2+1) -> für die Vermittlung von Katalogleistungen. | E20: ="Reverse Charge in Österreich "&VLOOKUP(D2,LoesungU,9) -> Reverse Charge in Österreich
C21: =VLOOKUP(15,HilfeU,$D$2+1) -> 0 | E21: Leistender = österreichischer Unternehmer,
C22: =VLOOKUP(16,HilfeU,$D$2+1) -> Eine Verschiebung des Leistungsortes durch UID | E22: =E8&" = anderer EU-Staat:" -> Empfängerstaat = anderer EU-Staat:
C23: =VLOOKUP(17,HilfeU,$D$2+1) -> ist ab 2010 nicht mehr möglich. | E23: Reverse Charge in anderem EU-Staat
C24: =VLOOKUP(18,HilfeU,$D$2+1) -> 0 | E24: =VLOOKUP(D2,LoesungU,8) -> zwingend
C25: =VLOOKUP(19,HilfeU,$D$2+1) -> Steuerbefreiungen für Vermittlungsleistungen: | E25: Leistender = österreichischer Unternehmer,
C26: =VLOOKUP(20,HilfeU,$D$2+1) -> - § 6 Abs. 1 Z. 5 UStG | E26: =E8&" = Drittland:" -> Empfängerstaat = Drittland:
C27: =VLOOKUP(21,HilfeU,$D$2+1) -> - § 6 Abs. 1 Z. 8 UStG | E27: Reverse Charge im Drittland
C28: =VLOOKUP(22,HilfeU,$D$2+1) -> - § 6 Abs. 1 Z. 13 UStG | E28: wenn nach nationalem Recht vorgesehen
C29: =VLOOKUP(23,HilfeU,$D$2+1) -> 0
C30: =VLOOKUP(24,HilfeU,$D$2+1) -> § 3a Abs. 6 UStG | E30: Aufnahme ZM (Leistung an ausl. Unternehmer aus EU)
C31: =VLOOKUP(25,HilfeU,$D$2+1) -> UStR neu: Rz 639s | E31: =VLOOKUP(D2,LoesungU,6) -> JA

Sheet Laenderliste
A1: 1 | B1: Belgien | C1: EU | D1: belgische | H1: Aufteilung | I1: DR
A2: 2 | B2: Bulgarien | C2: EU | D2: bulgarische | H2: Belgien | I2: EU | J2: belgische
A3: 3 | B3: Dänemark | C3: EU | D3: dänische | H3: Bulgarien | I3: EU | J3: bulgarische
A4: 4 | B4: Deutschland | C4: EU | D4: deutsche | H4: Dänemark | I4: EU | J4: dänische
A5: 5 | B5: Estland | C5: EU | D5: estische | H5: Deutschland | I5: EU | J5: deutsche
A6: 6 | B6: Finnland | C6: EU | D6: finnische | H6: DRITTLAND | I6: DR | J6: drittländische
A7: 7 | B7: Frankreich | C7: EU | D7: französische | H7: DRITTLAND 2 | I7: DR | J7: drittländische
A8: 8 | B8: Griechenland | C8: EU | D8: griechische | H8: Estland | I8: EU | J8: estische
A9: 9 | B9: Großbritannien | C9: EU | D9: britische | H9: EU-Staat nicht genannt | I9: EU | J9: EU nicht gen.
A10: 10 | B10: Irland | C10: EU | D10: irische | H10: Finnland | I10: EU | J10: finnische
A11: 11 | B11: Italien | C11: EU | D11: italienische | H11: Frankreich | I11: EU | J11: französische
A12: 12 | B12: Lettland | C12: EU | D12: lettische | H12: Griechenland | I12: EU | J12: griechische
A13: 13 | B13: Litauen | C13: EU | D13: litauische | H13: Großbritannien | I13: EU | J13: britische
A14: 14 | B14: Luxemburg | C14: EU | D14: luxemburg. | H14: Irland | I14: EU | J14: irische
A15: 15 | B15: Malta | C15: EU | D15: maltesische | H15: Italien | I15: EU | J15: italienische
A16: 16 | B16: Niederlande | C16: EU | D16: holländische | H16: Lettland | I16: EU | J16: lettische
A17: 17 | B17: Österreich | C17: EU | D17: österr. | H17: Litauen | I17: EU | J17: litauische
A18: 18 | B18: Polen | C18: EU | D18: polnische | H18: Luxemburg | I18: EU | J18: luxemburg.
A19: 19 | B19: Portugal | C19: EU | D19: portug. | H19: Malta | I19: EU | J19: maltesische
A20: 20 | B20: Rumänien | C20: EU | D20: rumänische | H20: Niederlande | I20: EU | J20: holländische
A21: 21 | B21: Schweden | C21: EU | D21: schwedische | H21: Österreich | I21: EU | J21: österreichische
A22: 22 | B22: Slowakei | C22: EU | D22: slowakische | H22: Polen | I22: EU | J22: polnische
A23: 23 | B23: Slowenien | C23: EU | D23: slowenische | H23: Portugal | I23: EU | J23: portugiesische
A24: 24 | B24: Spanien | C24: EU | D24: spanische | H24: Rumänien | I24: EU | J24: rumänische
A25: 25 | B25: Tschechien | C25: EU | D25: tschechische | H25: Schweden | I25: EU | J25: schwedische
A26: 26 | B26: Ungarn | C26: EU | D26: ungarische | H26: Slowakei | I26: EU | J26: slowakische
A27: 27 | B27: Zypern | C27: EU | D27: zyrische | H27: Slowenien | I27: EU | J27: slowenische
A28: 28 | B28: EU-Staat nicht genannt | C28: EU | H28: Spanien | I28: EU | J28: spanische
A29: 29 | B29: DRITTLAND | C29: DR | D29: drittländische | H29: Tschechien | I29: EU | J29: tschechische
A30: 30 | B30: DRITTLAND 2 | C30: DR | D30: drittländische | H30: Ungarn | I30: EU | J30: ungarische
H31: Zypern | I31: EU | J31: zyrische

Sheet U2
C2: Vermittlungsleistung für Unternehmer | I2: FALSE | J2: Steuerbefreiung = Wahr
C3: (ausgenommen: Vermittlungsleistungen der Grundstücksmakler)
I5: 17 | J5: Österreich
C6: Leistender Unternehmer aus ... | D6: Österreich | E6: Anwender | I6: 6 | J6: =VLOOKUP(I6,Laender,2) -> Finnland | K6: =VLOOKUP(I6,Laender,3) -> EU | L6: =VLOOKUP(I6,Laender,4) -> finnische
C7: Auftraggeber Unternehmer aus … | J7: (Leistungsempfänger)
C10: z.B.: Drittlandsexporten (nicht igL!), anderen echt steuerbefreiten Umsätzen (§ 6 Abs. 1 Z. 5 UStG)
C11: Krediten, Zahlungsmitteln, Forderungen, Wertpapieren, Gesellschaftsanteilen, Bürgschaften
C12: u.a. (§ 6 Abs. 1 Z. 8 UStG); Bausparverträgen, Versicherungsvertreter (§ 6 Abs. 1 Z 13 UStG)
E14: Kz. UVA | I14: =IF(D18="20%",1,IF(AND(I6=17,I2=TRUE),2,IF(AND(I6<>17,I2=TRUE),4,IF(AND(I6<>17,I6<>29),3,4)))) -> 3 | J14: Kontenplan (Erlöskonten)
C15: Ort der Leistung | D15: =J6 -> Finnland | E15: =IF(D15="Österreich","000"," --") -> -- | I15: 1 | J15: Provisionen 20% | K15: =VLOOKUP(30,_ekr4,2) -> 4821
C16: Steuerpflichtig / steuerfrei | D16: =IF(I2=TRUE,"steuerfrei","steuerpflichtig") -> steuerpflichtig | E16: =IF(AND(E15="000",D16="steuerfrei"),"015 / 020",IF(AND(E15="000",D16="steuerpflichtig"),"022"," --")) -> -- | I16: 2 | J16: Provisionen 0% | K16: =VLOOKUP(31,_ekr4,2) -> 0
C17: ="Reverse Charge in "&J6 -> Reverse Charge in Finnland | D17: =IF(D16="steuerfrei","nein",IF(I5=I6,"nein","ja")) -> ja | E17: =IF(AND(K6="DR",D17="ja"),"wenn RC im Drittland vorgesehen","") ->  | I17: 3 | J17: Erlöse sonstige Leistungen EU | K17: =VLOOKUP(16,_ekr4,2) -> 4101
C18: ="USt-Ausweis in der Rechnung ("&VLOOKUP(D15,Ustausweis,3)&")" -> USt-Ausweis in der Rechnung (finnische) | D18: =IF(AND(I6=17,D16="steuerpflichtig"),"20%","nein")&I20 -> nein (Hinweis RCS) | E18: =IF(AND(K6="EU",I6<>17,I2=FALSE),"ZM","") -> ZM | I18: 4 | J18: nicht steuerbare Auslandsumsätze | K18: =VLOOKUP(15,_ekr4,2) -> 4100
C20: =VLOOKUP($I$14,BMDU2L,2) -> Erlöse sonstige Leistungen EU | D20: Buchungsvorschlag | E20: =VLOOKUP($I$14,BMDU2L,3) -> 4101 | I20: =IF(E18="ZM"," (Hinweis RCS)","") -> (Hinweis RCS)
I23: FALSE | J23: Steuerbefreiung = Wahr = 1 | K23: =IF(AND(I23=TRUE,I25<>17),1,0) -> 0
I25: 4 | J25: =VLOOKUP(I25,Laender,2) -> Deutschland
C26: Leistender Unternehmer aus ... | I26: 17 | J26: Österreich
C27: Auftraggeber Unternehmer aus … | D27: Österreich | E27: Anwender
E31: Kz. UVA
C32: Ort der Leistung | D32: =J26 -> Österreich
C33: Steuerpflichtig / steuerfrei | D33: =IF($I$23=TRUE,"steuerfrei","steuerpflichtig") -> steuerpflichtig | I33: =IF(I25=17,1,IF(K23=0,2,3)) -> 2 | J33: =I33+K23 -> 2
C34: ="Reverse Charge in "&D32 -> Reverse Charge in Österreich | D34: =IF(D33="steuerfrei","nein",IF(I25=I26,"nein","ja")) -> ja | E34: =IF(D34="ja","057 / 066","") -> 057 / 066 | I34: 1 | J34: Provisionen an Dritte | K34: =VLOOKUP(11,_ekr5,2) -> 7340
C35: USt-Ausweis in der Rechnung | D35: =IF(AND(I25=17,D33="steuerpflichtig"),"20%","nein") -> nein | E35: =IF(D35="20%","060","") ->  | I35: 2 | J35: sonstige Leistungen RC | K35: =VLOOKUP(4,_ekr5,2) -> 5755
I36: 3 | J36: sonstige Leistungen kein RC | K36: =VLOOKUP(5,_ekr5,2) -> 5756
C37: =VLOOKUP(I33,BMDU2E,2) -> sonstige Leistungen RC | D37: Buchungsvorschlag | E37: =VLOOKUP(I33,BMDU2E,3) -> 5755
K38: =VLOOKUP(7,_ekr5,2) -> 0

Sheet U3
C2: Grundstücksleistung für Unternehmer | I2: FALSE | J2: Steuerbefreiung = Wahr
C3: (einschließlich Vermittlungsleistungen der Grundstücksmakler)
I5: 17 | J5: Österreich
C6: Leistender Unternehmer aus ... | D6: Österreich | E6: Anwender | I6: 4 | J6: =VLOOKUP(I6,Laender,2) -> Deutschland | K6: =VLOOKUP(I6,Laender,3) -> EU
C7: Auftraggeber Unternehmer aus … | J7: (Leistungsempfänger)
C9: Grundstücksort: | I9: 17 | J9: =VLOOKUP(I9,Laender,2) -> Österreich | K9: =VLOOKUP(I9,Laender,3) -> EU
J10: (Grundstücksort)
C12: z.B. Vermietung von Geschäftslokalen (§ 6 Abs 1 Z 16 UStG) ohne Option
E14: Kz. UVA | I14: =IF(D18="ja",1,IF(AND(I9=17,I2=TRUE),2,IF(I9<>17,3,"?"))) -> 1 | J14: Kontenplan (Erlöskonten)
C15: Ort der Leistung | D15: =J9 -> Österreich | E15: =IF(D15="Österreich","000"," --") -> 000 | I15: 1 | J15: Erlöse 20% (10%) | K15: =VLOOKUP(1,_ekr4,2)&"/"&VLOOKUP(2,_ekr4,2) -> 4120/4110 | L15: 4400
C16: Steuerpflichtig / steuerfrei | D16: =IF(I2=TRUE,"steuerfrei","steuerpflichtig") -> steuerpflichtig | E16: =IF(AND(E15="000",D16="steuerfrei"),"020",IF(AND(E15="000",D16="steuerpflichtig"),"022 / 029"," --")) -> 022 / 029 | I16: 2 | J16: Erlöse 0% unecht befreit | K16: =VLOOKUP(8,_ekr4,2) -> 4140 | L16: 4456
C17: ="Reverse Charge in "&J9 -> Reverse Charge in Österreich | D17: =IF(D16="steuerfrei","nein",IF(I5=I9,"nein","ja")) -> nein | E17: =IF(AND(I9<>17,D17="ja"),"wenn RC dort vorgesehen","") ->  | I17: 3 | J17: grenzüberschreitende DL nicht steuerbar | K17: =VLOOKUP(15,_ekr4,2) -> 4100
C18: ="USt-Ausweis in der Rechnung ("&VLOOKUP(D15,Ustausweis,3)&")" -> USt-Ausweis in der Rechnung (österreichische) | D18: =IF(AND(I9=17,D16="steuerpflichtig"),"ja","nein")&I20 -> ja | E18: keine ZM | I18: 4 | J18: Miet- und Pachterlöse | K18: =VLOOKUP(32,_ekr4,2)&"/"&VLOOKUP(33,_ekr4,2) -> 4822/4811 | L18: =IF(I6=29,"<<","") -> 
C20: =VLOOKUP($I$14,BMDU3L,2) -> Erlöse 20% (10%) | D20: Buchungsvorschlag | E20: =VLOOKUP($I$14,BMDU3L,3) -> 4120/4110
C21: =IF(I14=1,"Mieterträge 20% / 10% u.a.",IF(I14=2,"Mieterträge 0%","")) -> Mieterträge 20% / 10% u.a. | E21: =IF(I14=1,VLOOKUP(32,_ekr4,2)&"/"&VLOOKUP(33,_ekr4,2),IF(I14=2,VLOOKUP(34,_ekr4,2),"")) -> 4822/4811
I23: TRUE | L23: frei = 1000
I25: 29 | J25: =VLOOKUP(I25,Laender,2) -> DRITTLAND | L25: Leistender
C26: Leistender Unternehmer aus ... | I26: 17 | J26: Österreich
C27: Auftraggeber Unternehmer aus … | D27: Österreich | E27: Anwender
C29: Grundstücksort: | I29: 26 | J29: =VLOOKUP(I29,Laender,2) -> Ungarn | L29: stb in Österreich=17
J30: (Grundstücksort)
E31: Kz. UVA
C32: Ort der Leistung | D32: =J29 -> Ungarn | I32: =IF(I29<>17,4,IF(I25=17,3,IF(AND(I25<>17,I23=FALSE),1,2))) -> 4 | J32: Kontenplan (Aufwandskonten)
C33: Steuerpflichtig / steuerfrei | D33: =IF($I$23=TRUE,"steuerfrei","steuerpflichtig") -> steuerfrei | I33: 1 | J33: sonstige Leistungen RC | K33: =VLOOKUP(4,_ekr5,2) -> 5755
C34: ="Reverse Charge in "&D32 -> Reverse Charge in Ungarn | D34: =IF(D33="steuerfrei","nein",IF(I25=I29,"nein","ja")) -> nein | E34: =IF(AND(I29=17,D34="ja"),"057 / 066",IF(D34="ja","wenn dort vorgesehen","")) ->  | I34: 2 | J34: sonstige Leistungen kein RC | K34: =VLOOKUP(5,_ekr5,2) -> 5756
C35: USt-Ausweis in der Rechnung | D35: =IF(AND(I25=I29,D33="steuerpflichtig"),"ja","nein") -> nein | E35: =IF(AND(D35="ja",I29=17),"060","") ->  | I35: 3 | J35: Miet- und Pachtaufwand | K35: =VLOOKUP(12,_ekr5,2) -> 7400
I36: 4 | J36: sonstige Leistungen stb im Ausland | K36: =VLOOKUP(6,_ekr5,2) -> 5760
C37: =VLOOKUP($I$32,BMDU3E,2) -> sonstige Leistungen stb im Ausland | D37: Buchungsvorschlag | E37: =VLOOKUP($I$32,BMDU3E,3) -> 5760
C38: =IF(I32=3," div. Aufwandskonten","") ->  | E38: =IF(I32=3,"74.. u.a.","") ->  | K38: =IF(AND(D34="ja",I29=17)," (Hinweis RCS)","") -> 

Sheet VO3a16

Sheet Loesung U
B2: Leistung | C2: Leistungsort | D2: Abs. | E2: Ausnahmen, Besonderheiten | F2: ZM | G2: Leistender ist ausl. Unt.
A3: 1 | B3: Besorgungsleistung | C3: in DEMOVERSION nicht verfügbar
A4: 2 | B4: Vermittlungsleistung | C4: Empfängerstaat | D4: 6 | E4: Ausnahme: Grundstücksmakler (= Grundstücksleistung) | F4: JA | G4: Reverse Charge im Empfängerstaat | H4: zwingend
A5: 3 | B5: Grundstücksleistung | C5: Grundstücksort | D5: 9 | F5: NEIN | G5: Reverse Charge im Empfängerstaat | H5: wenn nach nationalem Recht vorgesehen
A6: 4 | B6: Personenbeförderung | C6: in DEMOVERSION nicht verfügbar
A7: 5 | B7: Güterbeförderung | C7: in DEMOVERSION nicht verfügbar
A8: 6 | B8: Kultur etc. | C8: in DEMOVERSION nicht verfügbar
A9: 7 | B9: Messen | C9: in DEMOVERSION nicht verfügbar
A10: 8 | B10: Restaurant | C10: in DEMOVERSION nicht verfügbar
A11: 9 | B11: Warenumschlag, Lagerung | C11: in DEMOVERSION nicht verfügbar
A12: 10 | B12: Arbeiten an bewegl. körperl. Sachen | C12: in DEMOVERSION nicht verfügbar
A13: 11 | B13: Kurzfr. Vermietung Kfz | C13: in DEMOVERSION nicht verfügbar
A14: 12 | B14: Langfr. Vermietung Kfz | C14: in DEMOVERSION nicht verfügbar
A15: 13 | B15: andere | C15: in DEMOVERSION nicht verfügbar

Sheet Hilfe U
A1: 1 | B1: Besorgungsleistung | C1: Vermittlungsleistung | D1: Grundstücksleistung | E1: Personenbeförderung | F1: Güterbeförderung | G1: Kultur, Künstler, Wissenschaft, Unterricht, | H1: Messen und Ausstellungen | I1: Restaurant und Verpflegung | J1: Warenumschlag, Lagerung | K1: Arbeiten an bewegl. körperl. Sachen | L1: Kurzfristige Vermietung von Beförderungsmitteln | M1: Langfristige Vermietung von Beförderungsmitteln | N1: Andere sonstige Leistung
A2: 2 | G2: Sport, Unterhaltung
A3: 3 | C3: Vermittlungsleistungen sind sonstige Leistungen, | D3: Grundstücksleistungen sind sonstige Leistungen, | E3: in DEMOVERSION nicht verfügbar | F3: in DEMOVERSION nicht verfügbar | G3: in DEMOVERSION nicht verfügbar | H3: in DEMOVERSION nicht verfügbar | I3: in DEMOVERSION nicht verfügbar | J3: in DEMOVERSION nicht verfügbar | K3: in DEMOVERSION nicht verfügbar | L3: in DEMOVERSION nicht verfügbar | M3: in DEMOVERSION nicht verfügbar | N3: in DEMOVERSION nicht verfügbar
A4: 4 | C4: bei denen der Unternehmer im fremden Namen | D4: die in engem Zusammenhang mit dem Grundstück
A5: 5 | C5: und für fremde Rechnung nach außen hin auftritt. | D5: stehen (Bebauung, Verwertung, Nutzung oder
A6: 6 | C6: Der Vermittler erhält für den Abschluss eines | D6: Unterhaltung des Grundstücks).
A7: 7 | C7: Geschäftes zwischen seinem Auftraggeber und
A8: 8 | C8: einem Dritten eine Provision. | D8: Beispiele:
A9: 9 | D9: - Grundstücksmakler, -vermittlung
A10: 10 | C10: Eine Vermittlungsleistung an einen Unternehmer | D10: - Grundstückssachverständige
A11: 11 | C11: wird (ausgenommen Grundstücksmakler) | D11: - Vermietung und Beherbergung
A12: 12 | C12: im Empfängerstaat ausgeführt (Generalklausel). | D12: - Einräumung von Rechten zur Grundstücksnutzung
A13: 13 | C13: Ab 2010 gibt es keine Sonderregelung mehr | D13: - Architektenleistungen
A14: 14 | C14: für die Vermittlung von Katalogleistungen. | D14: - Bauaufsicht
A15: 15 | D15: - Gebäudereparaturen
A16: 16 | C16: Eine Verschiebung des Leistungsortes durch UID | D16: - Gebäudereinigung
A17: 17 | C17: ist ab 2010 nicht mehr möglich. | D17: - Wartung von Gebäudeteilen (Heizung, Lift etc.)
A18: 18 | D18: - Beurkundung v. Grundstückskäufen
A19: 19 | C19: Steuerbefreiungen für Vermittlungsleistungen:
A20: 20 | C20: - § 6 Abs. 1 Z. 5 UStG
A21: 21 | C21: - § 6 Abs. 1 Z. 8 UStG | D21: Ort der Grundstücksleistung = Grundstücksort
A22: 22 | C22: - § 6 Abs. 1 Z. 13 UStG | H22: Unternehmer als die Veranstalter
A23: 23
A24: 24 | C24: § 3a Abs. 6 UStG | D24: § 3a Abs. 9 UStG
A25: 25 | C25: UStR neu: Rz 639s | D25: UStR neu: Rz 639v bis 640c

Sheet Privatperson
B2: Ort der sonstigen Leistung (§ 3a, Art 3a UStG) | D2: 3
B4: ... an NICHTUNTERNEHMER oder Privatperson
B6: Bitte auswählen (in DEMO nur Vermittlungs- und Grundstücksleistung verfügbar):
C7: =VLOOKUP(1,HilfeP,$D$2+1) -> Grundstücksleistung | E7: Leistungsort
C8: =VLOOKUP(2,HilfeP,$D$2+1) -> 0 | E8: =VLOOKUP(D2,LoesungP,3) -> Grundstücksort
C9: =VLOOKUP(3,HilfeP,$D$2+1) -> Grundstücksleistungen sind sonstige Leistungen,
C10: =VLOOKUP(4,HilfeP,$D$2+1) -> die in engem Zusammenhang mit dem Grundstück | E10: ="§ 3a Abs. "&VLOOKUP(D2,LoesungP,4)&" UStG" -> § 3a Abs. 9 UStG
C11: =VLOOKUP(5,HilfeP,$D$2+1) -> stehen (Bebauung, Verwertung, Nutzung oder
C12: =VLOOKUP(6,HilfeP,$D$2+1) -> Unterhaltung des Grundstücks).
C13: =VLOOKUP(7,HilfeP,$D$2+1) -> 0 | E13: Hinweise, Besonderheiten, Ausnahmen
C14: =VLOOKUP(8,HilfeP,$D$2+1) -> Beispiele: | E14: =VLOOKUP($D$2,LoesungP,5) -> bei Besorgungsleistungen:
C15: =VLOOKUP(9,HilfeP,$D$2+1) -> - Grundstücksmakler, -vermittlung | E15: =VLOOKUP($D$2,LoesungP,6) -> möglicher Anwendungsfall des § 23 UStG
C16: =VLOOKUP(10,HilfeP,$D$2+1) -> - Grundstückssachverständige | E16: =VLOOKUP($D$2,LoesungP,7) -> (z.B. Hotelaufenthalte)
C17: =VLOOKUP(11,HilfeP,$D$2+1) -> - Vermietung und Beherbergung | E17: =VLOOKUP($D$2,LoesungP,8) -> 0
C18: =VLOOKUP(12,HilfeP,$D$2+1) -> - Einräumung von Rechten zur Grundstücksnutzung | E18: =VLOOKUP($D$2,LoesungP,9) -> 0
C19: =VLOOKUP(13,HilfeP,$D$2+1) -> - Architektenleistungen | E19: =VLOOKUP($D$2,LoesungP,10) -> 0
C20: =VLOOKUP(14,HilfeP,$D$2+1) -> - Bauaufsicht | E20: =VLOOKUP($D$2,LoesungP,11) -> 0
C21: =VLOOKUP(15,HilfeP,$D$2+1) -> - Gebäudereparaturen | E21: =VLOOKUP($D$2,LoesungP,12) -> 0
C22: =VLOOKUP(16,HilfeP,$D$2+1) -> - Gebäudereinigung | E22: =VLOOKUP($D$2,LoesungP,13) -> 0
C23: =VLOOKUP(17,HilfeP,$D$2+1) -> - Wartung von Gebäudeteilen (Heizung, Lift etc.) | E23: =VLOOKUP($D$2,LoesungP,14) -> 0
C24: =VLOOKUP(18,HilfeP,$D$2+1) -> - Beurkundung v. Grundstückskäufen | E24: =VLOOKUP($D$2,LoesungP,15) -> 0
C25: =VLOOKUP(19,HilfeP,$D$2+1) -> 0 | E25: =VLOOKUP($D$2,LoesungP,16) -> 0
C26: =VLOOKUP(20,HilfeP,$D$2+1) -> 0 | E26: =VLOOKUP($D$2,LoesungP,17) -> 0
C27: =VLOOKUP(21,HilfeP,$D$2+1) -> 0 | E27: =VLOOKUP($D$2,LoesungP,18) -> 0
C28: =VLOOKUP(22,HilfeP,$D$2+1) -> Ort der Grundstücksleistung = Grundstücksort
C29: =VLOOKUP(23,HilfeP,$D$2+1) -> 0 | E29: Reverse Charge
C30: =VLOOKUP(24,HilfeP,$D$2+1) -> § 3a Abs. 9 UStG | E30: wenn Leistender = ausl. Unternehmer, stpfl. Leistung
C31: =VLOOKUP(25,HilfeP,$D$2+1) -> UStR neu: Rz 639v bis 640c | E31: im Inland und Empfänger = Körperschaft öffentl. Rechts

Sheet P2
N1: 7
C2: Vermittlungsleistung für Nichtunternehmer | I2: FALSE | J2: Steuerbefreiung = Wahr
C3: (ausgenommen: Vermittlungsleistungen der Grundstücksmakler)
I5: 17 | J5: Österreich
C6: Leistender Unternehmer aus ... | D6: Österreich | E6: Anwender | I6: 10 | J6: =VLOOKUP(I6,Laender,2) -> Irland | K6: =VLOOKUP(I6,Laender,3) -> EU
C7: Auftraggeber Nichtunternehmer aus … | J7: (Leistungsempfänger)
N9: vermittelter Umsatz | O9: Anmerkung | P9: Ort
C10: z.B.: Drittlandsexporten (nicht igL!), anderen echt steuerbefreiten Umsätzen (§ 6 Abs. 1 Z. 5 UStG) | M10: 1 | N10: Warenverkauf | O10: Ort der Lieferung bei bewegter Lieferung: Abgangsort der Ware; bei ruhender Lieferung: Ort der Verschaffung der Verfügungsmacht | P10: idR Abgangsort der Ware
C11: Krediten, Zahlungsmitteln, Forderungen, Wertpapieren, Gesellschaftsanteilen, Bürgschaften | M11: 2 | N11: Grundstücksverkauf | P11: Grundstücksort
C12: u.a. (§ 6 Abs. 1 Z. 8 UStG); Bausparverträgen, Versicherungsvertreter (§ 6 Abs. 1 Z 13 UStG) | M12: 3 | N12: Grundstücksleistung | O12: z.B. Grundstücksmakler, - sachverständige, Hotelbeherbergung, Vorbereitung oder Koordinierung von Bauleistungen, Vermietung von Grundstücken( § 3a Abs 9 UStG) | P12: Grundstücksort
M13: 4 | N13: Personenbeförderung | O13: § 3a Abs 10 UStG | P13: Aufteilung (Streckenanteil)
C14: Vermittelter Umsatz | M14: 5 | N14: Innerg. Güterbeförderung | O14: Abgangsort und Bestimmungsland in zwei verschiedenen EU-Staaten | P14: Abgangsort
M15: 6 | N15: andere Güterbeförderung | O15: z.B. innerstaatliche Güterbeförderung; Güterbeförderung von und ins Drittland | P15: Aufteilung (Streckenanteil)
C16: =VLOOKUP(N1,VermP,3) -> z.B. künstlerische, wissenschaftliche, unterrichtende, sportliche Leistungen, Leistungen izM Messen und Ausstellungen, Arbeiten an bewegl. körperlichen Gegenständen, Restaurant- und Verpflegungsdienstleistungen (§ 3a Abs 11 UStG) | M16: 7 | N16: Tätigkeitsortleistung | O16: z.B. künstlerische, wissenschaftliche, unterrichtende, sportliche Leistungen, Leistungen izM Messen und Ausstellungen, Arbeiten an bewegl. körperlichen Gegenständen, Restaurant- und Verpflegungsdienstleistungen (§ 3a Abs 11 UStG) | P16: Tätigkeitsort
E17: Kz. UVA (bei Leistungsort im Inland) | I17: =IF(I2=TRUE,2,1) -> 1 | J17: BMD Kontenplan (Erlöskonten) | M17: 8 | N17: kurzfristige Vermietung v. Beförderungsmitteln | O17: bis 30 Tage (Wasserfahrzeuge: bis 90 Tage) | P17: Übergabeort
C18: Ort der Leistung | D18: =VLOOKUP(N1,VermP,4) -> Tätigkeitsort | E18: ="000" -> 000 | I18: 1 | J18: Erlöse 20% | K18: =VLOOKUP(1,_ekr4,2) -> 4120 | M18: 9 | N18: langfristige Vermietung v. Beförderungsmitteln | O18: über 30 Tage (Wasserfahrzeuge: über 90 Tage) | P18: Unternehmerort
C19: Steuerpflichtig / steuerfrei | D19: =IF(I2=TRUE,"steuerfrei","steuerpflichtig") -> steuerpflichtig | E19: =IF(I2=TRUE,"015/020","022") -> 022 | I19: 2 | J19: Erlöse 0% befreit | K19: =VLOOKUP(5,_ekr4,2)&"/"&VLOOKUP(8,_ekr4,2) -> 4140/4140 | M19: 10 | N19: Katalogleistung an Nichtunt. aus Drittland | O19: z.B Urheberrechte, Werbung, Steuerberater, Rechtsanwälte, Dolmetscher, rechtliche / technische / wirtschaftliche Beratung, bestimmte EDV-Leistungen, elektronische Dienstleistungen, Vermietung bewegl. Sachen außer von Beförderungsmitteln (§ 3a Abs. 14 UStG) | P19: Drittland
C20: Reverse Charge, ZM | D20: nein | E20: =IF(AND(K6="DR",D20="ja"),"wenn im Drittland vorgesehen","") ->  | I20: 3 | J20: Erlöse sonstige Leistungen EU | K20: 4113 | M20: 11 | N20: andere sonstige Leistung | P20: Österreich
C21: USt-Ausweis in der Rechnung | D21: =IF(D19="steuerpflichtig","ja","nein") -> ja | I21: 4 | J21: grenzüberschreitende DL nicht steuerbar | K21: 4112 | L21: =IF(I6=29,"<<","") -> 
C23: =VLOOKUP(I17,I18:K21,2) -> Erlöse 20% | D23: Buchungsvorschlag | E23: =VLOOKUP(I17,I18:K21,3) -> 4120 | I23: =IF(E21="ZM"," (Hinweis RCS)","") -> 
C24: Leistungsort Ausland: nicht steuerbar | D24: Buchungsvorschlag | E24: =Kontenplan!B18 -> 4100
I26: FALSE | J26: Steuerbefreiung = Wahr

Sheet P3
C2: Grundstücksleistung für Nichtunternehmer | I2: FALSE | J2: Steuerbefreiung = Wahr
C3: (einschließlich Vermittlungsleistungen der Grundstücksmakler)
I5: 17 | J5: Österreich
C6: Leistender Unternehmer aus ... | D6: Österreich | E6: Anwender | I6: 4 | J6: =VLOOKUP(I6,Laender,2) -> Deutschland | K6: =VLOOKUP(I6,Laender,3) -> EU
C7: Auftraggeber Nichtunternehmer aus … | J7: (Leistungsempfänger)
C9: Grundstücksort: | I9: 17 | J9: =VLOOKUP(I9,Laender,2) -> Österreich | K9: =VLOOKUP(I9,Laender,3) -> EU
J10: (Grundstücksort)
E14: Kz. UVA | I14: =IF(I9<>17,3,IF(D18="ja",1,IF(AND(I9=17,I2=TRUE),2,"?"))) -> 1 | J14: BMD Kontenplan (Erlöskonten)
C15: Ort der Leistung | D15: =J9 -> Österreich | E15: =IF(D15="Österreich","000"," --") -> 000 | I15: 1 | J15: Erlöse 20%, Mieterlöse u.a. | K15: =VLOOKUP(32,_ekr4,2)&" u.a." -> 4822 u.a.
C16: Steuerpflichtig / steuerfrei | D16: =IF(I2=TRUE,"steuerfrei","steuerpflichtig") -> steuerpflichtig | E16: =IF(AND(E15="000",D16="steuerfrei"),"020",IF(AND(E15="000",D16="steuerpflichtig"),"022"," --")) -> 022 | I16: 2 | J16: Erlöse 0% unecht befreit | K16: =VLOOKUP(8,_ekr4,2) -> 4140
C17: Reverse Charge, ZM | D17: nein | E17: =IF(AND(I9<>17,D17="ja"),"wenn dort vorgesehen","") ->  | I17: 3 | J17: grenzüberschreitende DL nicht steuerbar | K17: =VLOOKUP(15,_ekr4,2) -> 4100
C18: ="USt-Ausweis in der Rechnung ("&VLOOKUP(D15,Ustausweis,3)&")" -> USt-Ausweis in der Rechnung (österreichische) | D18: =IF(I2=FALSE,"ja","nein") -> ja | L18: =IF(I6=29,"<<","") -> 
C20: =VLOOKUP($I$14,BMDU2,2) -> Erlöse 20%, Mieterlöse u.a. | D20: Buchungsvorschlag | E20: =VLOOKUP($I$14,BMDU2,3) -> 4822 u.a.
I23: FALSE | J23: Steuerbefreiung = Wahr

Sheet Loesung P
B2: Leistung | C2: Leistungsort | D2: Abs. | E2: Ausnahmen, Besonderheiten | F2: A2 | G2: A3 | H2: A4 | I2: A5 | J2: A6 | K2: A7 | L2: A8 | M2: A9 | N2: A10 | O2: A11 | P2: A12 | Q2: A13 | R2: A14
A3: 1 | B3: Besorgungsleistung | C3: DEMOVERSION
A4: 2 | B4: Vermittlungsleistung | C4: Ort des vermittelten Umsatzes | D4: 8 | E4: Beispiele: Vermittlung einer(s) | F4: - Warenlieferung: Ort der Lieferung | G4: - Grundstücksverkaufes: Grundstücksort | H4: - Grundstücksleistung: Grundstücksort | I4: - Tätigkeitsortleistung: Tätigkeitsort | J4: - Katalogleistung an Privatperson EU: | K4: Unternehmerort (mit Ausnahmen) | L4: - Katalogleistung an Privatperson Drittland: | M4: Drittland | N4: - innergem. Güterbeförderung: Abgangsort | O4: - Kfz-Vermietung bis 30 Tage: Übergabeort | P4: - Kfz-Vermietung über 30 Tage: | Q4: Unternehmerort des Vermieters | R4: ab 2013: Wohnsitz / Empfängerort des Mieters
A5: 3 | B5: Grundstücksleistung | C5: Grundstücksort | D5: 9 | E5: bei Besorgungsleistungen: | F5: möglicher Anwendungsfall des § 23 UStG | G5: (z.B. Hotelaufenthalte)
A6: 4 | B6: Personenbeförderung | C6: DEMOVERSION
A7: 5 | B7: Güterbeförderung | C7: DEMOVERSION
A8: 6 | B8: Kultur etc. | C8: DEMOVERSION
A9: 7 | B9: Messen | C9: DEMOVERSION
A10: 8 | B10: Restaurant | C10: DEMOVERSION
A11: 9 | B11: Warenumschlag, Lagerung | C11: DEMOVERSION
A12: 10 | B12: Arbeiten an bewegl. körperl. Sachen | C12: DEMOVERSION
A13: 11 | B13: Kurzfr. Vermietung Kfz | C13: DEMOVERSION
A14: 12 | B14: Langfr. Vermietung Kfz | C14: DEMOVERSION
A15: 13 | B15: Katalogleistung | C15: DEMOVERSION
A16: 14 | B16: andere | C16: DEMOVERSION

Sheet Hilfe P
A1: 1 | B1: Besorgungsleistung | C1: Vermittlungsleistung | D1: Grundstücksleistung | E1: Personenbeförderung | F1: Güterbeförderung | G1: Kultur, Künstler, Wissenschaft, Unterricht, | H1: Messen und Ausstellungen | I1: Restaurant und Verpflegung | J1: Warenumschlag, Lagerung | K1: Arbeiten an bewegl. körperl. Sachen | L1: Kurzfristige Vermietung von Beförderungsmitteln | M1: Langfristige Vermietung von Beförderungsmitteln | N1: Katalogleistung | O1: Andere sonstige Leistung
A2: 2 | G2: Sport, Unterhaltung
A3: 3 | B3: DEMOVERSION, Details sind nur in | C3: Vermittlungsleistungen sind sonstige Leistungen, | D3: Grundstücksleistungen sind sonstige Leistungen, | E3: DEMOVERSION, Details sind nur in | F3: DEMOVERSION, Details sind nur in | G3: DEMOVERSION, Details sind nur in | H3: DEMOVERSION, Details sind nur in | I3: DEMOVERSION, Details sind nur in | J3: DEMOVERSION, Details sind nur in | K3: DEMOVERSION, Details sind nur in | L3: DEMOVERSION, Details sind nur in | M3: DEMOVERSION, Details sind nur in | N3: DEMOVERSION, Details sind nur in | O3: DEMOVERSION, Details sind nur in
A4: 4 | B4: der Vollversion verfügbar | C4: bei denen der Unternehmer im fremden Namen | D4: die in engem Zusammenhang mit dem Grundstück | E4: der Vollversion verfügbar | F4: der Vollversion verfügbar | G4: der Vollversion verfügbar | H4: der Vollversion verfügbar | I4: der Vollversion verfügbar | J4: der Vollversion verfügbar | K4: der Vollversion verfügbar | L4: der Vollversion verfügbar | M4: der Vollversion verfügbar | N4: der Vollversion verfügbar | O4: der Vollversion verfügbar
A5: 5 | C5: und für fremde Rechnung nach außen hin auftritt. | D5: stehen (Bebauung, Verwertung, Nutzung oder
A6: 6 | C6: Der Vermittler erhält für den Abschluss eines | D6: Unterhaltung des Grundstücks).
A7: 7 | C7: Geschäftes zwischen seinem Auftraggeber und
A8: 8 | C8: einem Dritten eine Provision. | D8: Beispiele:
A9: 9 | D9: - Grundstücksmakler, -vermittlung
A10: 10 | C10: Eine Vermittlungsleistung an Nichtunternehmer | D10: - Grundstückssachverständige
A11: 11 | C11: wird an dem Ort erbracht, an dem der | D11: - Vermietung und Beherbergung
A12: 12 | C12: vermittelte Umsatz ausgeführt wird. | D12: - Einräumung von Rechten zur Grundstücksnutzung
A13: 13 | D13: - Architektenleistungen
A14: 14 | C14: Die Leistungen der Grundstücksmakler | D14: - Bauaufsicht
A15: 15 | C15: fallen unter die Grundstücksleistungen. | D15: - Gebäudereparaturen
A16: 16 | D16: - Gebäudereinigung
A17: 17 | C17: Steuerbefreiungen für Vermittlungsleistungen: | D17: - Wartung von Gebäudeteilen (Heizung, Lift etc.)
A18: 18 | C18: - § 6 Abs. 1 Z. 5 UStG | D18: - Beurkundung v. Grundstückskäufen
A19: 19 | C19: - § 6 Abs. 1 Z. 8 UStG
A20: 20 | C20: - § 6 Abs. 1 Z. 13 UStG
A21: 21
A22: 22 | D22: Ort der Grundstücksleistung = Grundstücksort
A23: 23
A24: 24 | C24: § 3a Abs. 6 UStG | D24: § 3a Abs. 9 UStG
A25: 25 | C25: UStR neu: Rz 639s | D25: UStR neu: Rz 639v bis 640c

Sheet § 3a UStG alt

Sheet § 3a UStG ab 2010

Sheet Reversecharge
B1: Reverse Charge / Übergang der Steuerschuld
B2: (§ 19 Abs. 1 zweiter Satz UStG)
B4: Unter folgenden Voraussetzungen geht die Steuerschuld auf den
B5: Leistungsempfänger (Auftraggeber) über:
B7: 1) Leistender = ausländischer Unternehmer (kein Sitz, Wohnsitz, gewöhnl. Aufenthalt oder Betriebsstätte in Österreich)
B8: 2) Leistungsempfänger = Unternehmer, K.Ö.R. oder juristische Person mit UID
B9: 3) steuerpflichtige Werklieferung, -leistung oder sonstige Leistung in Österreich
B11: Ab 1.1.2010 kommt es auch dann zum Reverse Charge, wenn der leistende ausländische Unternehmer zwar eine
B12: Betriebsstätte in Österreich hat, diese aber an der Leistungserbringung nicht beteiligt ist.
B14: Das Reverse Charge ist auch anwendbar im Verhältnis zu Drittstaaten!
B15: Leistungsempfänger kann auch ein anderer ausländischer Unternehmer oder ausl. jur. Person sein
B17: Anwendungsfälle:
B18: - alle sonstigen Leistungen (einschließlich Werkleistungen)
B19: - Werklieferungen
B20: Ausnahmen: Duldung der Benützung von Bundesstraßen und (ab 1.1.2012) Eintrittsberechtigungen
B22: UStR: siehe Rz 2601 ff
B24: Achtung: Das Reverse Charge ist EU- und weltweit nicht harmonisiert, es kann in einzelnen Ländern
B25: diesbezüglich unterschiedliche Vorschriften geben. Zu empfehlen ist bei Leistungsorten im Ausland
B26: im Zweifel die Kontaktierung des dortigen Leistungsempfängers zur Klärung der nationalen Vorschriften.
B28: Ein weiterer Fall des Reverse Charge ist bei Dreiecksgeschäften gem. Art. 25 Abs. 5 UStG vorgesehen.
B29: Bei anderen in Österreich steuerbaren und steuerpflichtigen Lieferungen ausländischer Unternehmer an andere Unternehmer
B30: oder juristische Personen öff. Rechts ist an Stelle des "Reverse Charge" die Haftung gem. § 27 Abs. 4 UStG zu beachten
B31: (Einbehaltung der österr. USt durch Abnehmer und Abfuhr (i.d.R.) ans Finanzamt Graz Stadt).
B33: In den Fällen des Reverse Charge darf keine USt in der Rechnung ausgewiesen werden.
B34: Stattdessen ist auf den Übergang der Steuerschuld hinzuweisen. Beim Hinweis handelt es sich
B35: jedoch um eine bloße Formvorschrift, d.h. bei Vorliegen der Voraussetzungen: zwingend R.C. (auch ohne Re.-Hinweis)
B36: Ein Vorsteuerabzug einer zu Unrecht gesondert ausgewiesenen USt in Fällen des R.C. ist unzulässig.
B38: Gesetzestexte:

Sheet Par 19 Abs 1

Sheet Par 19 Abs 1 alt

Sheet Par 6

Sheet Par 7

Sheet Par 8

Sheet Art 1

Sheet Art 7

Sheet Par 23
A1: § 23 UStG
A3: Besteuerung von Reiseleistungen
A5: § 23. (1) Die nachfolgenden Vorschriften gelten für Reiseleistungen
A6: eines Unternehmers,
A8: - die nicht für das Unternehmen des Leistungsempfängers bestimmt sind,
A9: - soweit der Unternehmer dabei gegenüber dem Leistungsempfänger im
A10: eigenen Namen auftritt und
A11: - Reisevorleistungen in Anspruch nimmt.
A13: (2) Die Leistung des Unternehmers ist als sonstige Leistung anzusehen.
A14: Erbringt der Unternehmer an einen Leistungsempfänger im Rahmen einer Reise
A15: mehrere Leistungen dieser Art, so gelten sie als eine einheitliche sonstige Leistung.
A17: (3) Der Ort der sonstigen Leistung bestimmt sich nach § 3a Abs 7.
A19: (4) Reisevorleistungen sind Lieferungen und sonstige Leistungen Dritter,
A20: die den Reisenden unmittelbar zugute kommen.
A22: (5) Die sonstige Leistung ist steuerfrei, wenn die Reisevorleistungen im
A23: Drittlandsgebiet bewirkt werden.
A25: (6) Sind die Reisevorleistungen nur zum Teil Reisevorleistungen im Sinne des
A26: Abs. 5, so ist nur der Teil der sonstigen Leistung steuerfrei, dem die im Abs. 5
A27: bezeichneten Reisevorleistungen zuzurechnen sind. Die Voraussetzungen der
A28: Steuerbefreiung müssen vom Unternehmer buchmäßig nachgewiesen sein. Der
A29: Bundesminister für Finanzen kann aus Vereinfachungsgründen bei Schiffs- und
A30: Flugreisen durch Verordnung bestimmen, wie der auf das Drittlandsgebiet
A31: entfallende Teil der Reisevorleistung zu ermitteln ist.
A33: (7) Die sonstige Leistung bemisst sich nach dem Unterschied zwischen dem
A34: Betrag, den der Leistungsempfänger aufwendet, um die Leistung zu erhalten und
A35: dem Betrag, den der Unternehmer für die Reisevorleistungen aufwendet. Die
A36: Umsatzsteuer gehört nicht zur Bemessungsgrundlage.
A37: Der Unternehmer kann die Bemessungsgrundlage statt für jede einzelne Leistung
A38: entweder für Gruppen von Leistungen oder für die gesamten innerhalb des
A39: Veranlagungszeitraumes (Voranmeldungszeitraumes) erbrachten Leistungen ermitteln.
A41: (8) Abweichend von § 12 Abs. 1 ist der Unternehmer nicht berechtigt, die ihm
A42: für die Reisevorleistungen gesondert in Rechnung gestellten Steuerbeträge als
A43: Vorsteuer abzuziehen. Im übrigen bleibt § 12 unberührt.
A45: (9) Für die sonstigen Leistungen gilt § 18 mit der Maßgabe, daß aus
A46: den Aufzeichnungen des Unternehmers zu ersehen sein müssen:
A48: 1. der Betrag, den der Leistungsempfänger für die Leistung aufwendet
A49: 2. die Beträge, die der Unternehmer für die Reisevorleistungen aufwendet
A50: 3. die Bemessungsgrundlage nach Abs. 7 und
A51: 4. wie sich die in § 1 und 2 bezeichneten Beträge und die Bemessungsgrundlage
A52: nach Abs. 7 auf steuerpflichtige und steuerfreie Leistungen verteilen.

Sheet Par 13b dUStG

Sheet Kundenstock

Sheet Beispiele
B1: Beispielsammlung | C1: Liste kann beliebig ergänzt werden; Eintrag bitte am Ende, dann [Liste alph. sortieren] | G1: Nr. | L1: =C7 -> Tätigkeitsort | M1: =VLOOKUP(L1,L3:M12,2) -> 8
C2: Stand: 1.1.2012; Irrtümer vorbehalten
B3: ß | C3: Bitte auswählen | G3: 1 | L3: Besorgungsleistung | M3: 1
B4: Sonstige Leistung | C4: Einstufung bis 2009 | D4: Einstufung ab 2010 (für Auswahl in Programm) | E4: UStR alt (Rz...) | F4: UStR neu (Rz...) | G4: Anmerkung | L4: Generalklausel | M4: 2
B5: Abbruch von Gebäuden | C5: Grundstücksleistung | D5: Grundstücksleistung | E5: 521 | L5: Grundstücksleistung | M5: 3
B6: Abschleppdienste Kfz | D6: Generalklausel | F6: 641m
A7: 114 | B7: Arbeiten an beweglichen Sachen | C7: Tätigkeitsort | D7: Arbeiten an bewegl. körperl. Sachen | E7: 553 | F7: 639f, 641c,d | L7: Güterbeförderung | M7: 4
B8: Architekten | C8: Grundstücksleistung | D8: Grundstücksleistung | E8: 521 | F8: 640a | L8: Katalogleistung | M8: 5
B9: Ärzte | C9: Generalklausel | D9: Generalklausel | E9: 630 | F9: 639p | L9: Ort der Nutzung | M9: 6
B10: Auf- / Abbau von Messeständen | C10: Grundstücksleistung | D10: Messen und Ausstellungen | E10: 528 | F10: 640y | L10: Personenbeförderung | M10: 7
B11: Bauaufsicht | C11: Grundstücksleistung | D11: Grundstücksleistung | E11: 521 | F11: 640a | L11: Tätigkeitsort | M11: 8
B12: Bauingenieure | C12: Grundstücksleistung | D12: Grundstücksleistung | E12: 521 | F12: 640a | L12: Vermittlungsleistung | M12: 9
B13: Bauträger | C13: Grundstücksleistung | D13: Grundstücksleistung | F13: 640a
B14: Begutachtung bewegl. Sachen | C14: Tätigkeitsort | D14: Arbeiten an bewegl. körperl. Sachen | E14: 553 | F14: 641d
B15: Begutachtung unbewegl. Sachen | C15: Grundstücksleistung | D15: Grundstücksleistung | F15: 640a
B16: Beherbergung | C16: Grundstücksleistung | D16: Grundstücksleistung | E16: 518 | F16: 639x
B17: Bereitstellung von Websites | C17: Katalogleistung | D17: Katalogleistung | E17: 604 | F17: 642o
B18: Bergung von Autos | C18: Generalklausel | D18: Generalklausel | E18: 634 | F18: 641m
B19: ……..
B20: Leistungen A-Z in Vollversion (Stand 1.1.2013)
B701: Ende der Datenbank

Sheet Archivierung

Sheet ERechnung

Sheet Eintritt2
